Cogmind - Beta 12 X1 *** ADVENTURER MODE // 2022.07.02 @ 15:44:21 Player: Lyra Result: Destroyed by S-27 Virus with Autogun Performance ------------- Evolutions (4) 2000 Regions Visited (9) 1800 Robots Destroyed (183) 915 Value Destroyed (6526) 6526 Prototype IDs (14) 280 Alien Tech Used (0) 0 Bonus (3755) 3755 TOTAL SCORE: 15276 Bonus ------- Triggered High Security 500 High Alert Combat Kills 2350 Follower Combat Kills 1065 Entered Garrisons 200 Friendly Fire -360 Cogmind --------- Core Integrity 0/850 Matter 286/300 Energy 98/100 System Corruption 2% Temperature Cool (0) Movement Core (50) Location -6/Extension Parts ------- > --- POWER (1) -------- (None) > --- PROPULSION (6) --- Improved Treads > --- UTILITY (5) ------ Structural Scanner > --- WEAPON (3) ------- (None) > --- INVENTORY (5) ---- Energy Well (350) EM Disruption Field Peak State ------------ > --- POWER ------------ Enhanced Nuclear Core > --- PROPULSION ------- Cooled Aerolev Unit Cooled Aerolev Unit Cooled Aerolev Unit Cooled Aerolev Unit Gravmag Array > --- UTILITY ---------- Improved Signal Interpreter Weapon Mount Advanced Transmission Jammer Improved Light Armor Plating Thermal Shield > --- WEAPON ----------- Heavy Flak Cannon Antimatter Cannon Segregator > --- INVENTORY -------- Reinforced Quantum Reactor Cooled Aerolev Unit Improved Cooling System Improved Sensor Array EM Disruption Field [Rating: 80] Favorites ----------- Power Light Quantum Reactor Engine Improved Ion Engine Power Core Enhanced Nuclear Core Reactor Light Quantum Reactor Propulsion Improved Heavy Treads Treads Improved Heavy Treads Leg Carbon-fiber Leg Wheel Wheel Hover Unit Cooled Aerolev Unit Flight Unit Improved VTOL Module Utility Improved Light Armor Plating Device Improved Cooling System Storage High-capacity Storage Unit Processor Visual Processing Unit Hackware Hacking Suite Protection Improved Light Armor Plating Weapon Improved Assault Rifle Energy Gun EM Pulse Gun Energy Cannon Heavy Particle Cannon Ballistic Gun Improved Assault Rifle Ballistic Cannon Heavy Assault Cannon Launcher Grenade Launcher Slashing Weapon Segregator Build | -11 -10 -10 -9 -9 -8 -8 -7 -6 -6 ------- Run | Scr Mat Min Mat Min Mat Gar Fac Fac Ext Slots Evolved 8 | . . . 2 . 2 . 2 2 . Power . | . . . . . . . . . . Propulsion 4 | . . . 1 . . . 1 2 . Utility 3 | . . . . . 2 . 1 . . Weapon 1 | . . . 1 . . . . . . Parts Attached 205 | . 5 8 13 8 18 30 40 45 38 Power 11 | . . 1 1 . 1 3 . 4 1 Engine 6 | . . 1 1 . 1 1 . 1 1 Core 2 | . . . . . . . . 2 . Reactor 3 | . . . . . . 2 . 1 . Propulsion 53 | . . 2 4 2 5 3 7 12 18 Treads 20 | . . 2 4 2 2 3 3 . 4 Leg 17 | . . . . . . . 3 . 14 Wheel 3 | . . . . . 3 . . . . Hover 12 | . . . . . . . . 12 . Flight 1 | . . . . . . . 1 . . Utility 84 | . 2 . 2 3 6 9 28 22 12 Device 50 | . . . 1 . 1 6 20 16 6 Storage 2 | . 1 . . . . 1 . . . Processor 6 | . 1 . . . . . 1 3 1 Hackware 1 | . . . . . . . 1 . . Protection 25 | . . . 1 3 5 2 6 3 5 Artifact . | . . . . . . . . . . Weapon 57 | . 3 5 6 3 6 15 5 7 7 Energy Gun 14 | . 2 2 2 . . . . 2 6 Energy Cannon 4 | . . . . . 1 3 . . . Ballistic Gun 27 | . . 3 4 2 3 9 4 2 . Ballistic Cannon 6 | . . . . . . 3 . 2 1 Launcher 5 | . 1 . . 1 2 . 1 . . Special Weapon . | . . . . . . . . . . Impact Weapon . | . . . . . . . . . . Slashing Weapon 1 | . . . . . . . . 1 . Piercing Weapon . | . . . . . . . . . . Special Melee Weapon . | . . . . . . . . . . Unidentified Prototypes 8 | . . . 1 . 2 1 1 3 . Parts Lost 69 | . . 4 1 7 3 2 21 8 23 Power 6 | . . 1 . . 1 1 1 1 1 Propulsion 22 | . . 1 . 3 1 . 6 2 9 Utility 21 | . . . . 2 . . 9 3 7 Weapon 20 | . . 2 1 2 1 1 5 2 6 Highest Loss Streak 16 | . . 2 1 7 2 1 16 5 15 To Critical Strikes 2 | . . 1 . 1 . . . . . Average Slot Usage (%) 87 | . 96 99 99 88 88 84 76 78 91 Engine 5 | . 14 14 11 11 7 2 . . 5 Reactor 3 | . . . . . . 6 6 . . Treads 14 | . . 5 33 23 17 18 14 . 1 Leg 6 | . 28 22 . . . . . . 34 Hover 1 | . . . . . . . . 31 . Device 8 | . . . 7 1 . 8 11 19 20 Storage 8 | . 14 14 11 11 9 9 6 . . Processor 3 | . 10 14 1 . . . 4 7 4 Protection 10 | . . . 2 8 25 18 8 3 5 Energy Gun 4 | . 25 14 7 . . . . 1 15 Energy Cannon 1 | . . . . . 2 3 . . . Ballistic Gun 10 | . 2 10 25 32 22 8 6 1 . Ballistic Cannon 5 | . . . . . . 8 10 7 1 Naked Turns 15 | . . . . . . . 6 . 9 Heaviest Build 97 | 12 28 33 40 44 56 97 97 39 36 Greatest Support 135 | 20 20 40 66 66 62 109 135 56 105 Greatest Overweight (x) 4 | . 1 1 . . 4 1 1 1 2 Average Overweight (x) . | . . . . . . . . . . Largest Inventory Capacity 20 | . 15 15 15 15 15 20 20 5 5 Average Capacity 15 | . 14 15 15 15 15 19 19 5 5 Most Carried 20 | . 12 15 15 15 15 20 20 5 5 Average Carried 15 | . 10 13 14 13 14 19 18 4 4 Final Capacity 20 | 8 15 15 15 15 15 20 5 5 5 Final Carried 20 | 6 12 13 15 14 15 20 5 5 2 Class Distribution -------------------- 53% | Mutant 18% | Tank 8% | Gunner 6% | Scavenger-Tank 4% | Scavenger-Mutant Dominant Class ---------------- Mutant | -10/Materials Mutant | -10/Mines Gunner | -9/Materials Tank | -9/Mines Tank | -8/Materials Mutant | -8/Garrison Tank | -7/Factory Mutant | -6/Factory Scavenger-Tank | -6/Extension Resources | -11 -10 -10 -9 -9 -8 -8 -7 -6 -6 ----------- Run | Scr Mat Min Mat Min Mat Gar Fac Fac Ext Matter Collected 6106 | 190 243 154 592 150 484 1411 1626 589 667 Remotely 921 | . . . . . 144 . 777 . . Salvage Created 7239 | . 325 308 1347 332 530 1232 1816 422 927 Parts 402 | . 25 28 92 24 25 60 90 22 36 Haulers Intercepted 6 | . . . 2 . 1 . 2 1 . Recyclers Shooed 3 | . . . . . . . 1 2 . Parts Field Recycled . | . . . . . . . . . . Retrieved Matter . | . . . . . . . . . . Parts Self-Destructed . | . . . . . . . . . . Prevented . | . . . . . . . . . . Kills | -11 -10 -10 -9 -9 -8 -8 -7 -6 -6 ------- Run | Scr Mat Min Mat Min Mat Gar Fac Fac Ext Combat Hostiles Destroyed 146 | . 10 9 30 17 4 23 34 7 12 Guns 90 | . 9 8 30 12 3 7 10 . 11 Cannons 41 | . . . . . . 15 19 7 . AOE 13 | . 1 1 . 5 1 . 5 . . Classes Destroyed 17 | . 4 1 5 2 1 2 2 . . Worker 6 | . . . 1 . 1 . 4 . . Builder 10 | . . . 1 2 . . 3 2 2 Hauler 6 | . . . 2 . 1 . 2 1 . Recycler 10 | . 1 . . 1 3 . 2 1 2 Mechanic 2 | . . . . . . . 2 . . Operator 2 | . . . 1 . . 1 . . . Watcher 12 | . 2 . 5 . 1 . 1 2 1 Swarmer 25 | . 9 3 4 3 . 3 3 . . Grunt 58 | . 1 4 17 . 2 11 16 4 3 Brawler 9 | . . . . . . 1 5 . 3 Duelist 5 | . . . 2 . . . 1 . 2 Protector 2 | . . . . . . . 1 . 1 Sentry 23 | . . 2 7 . 1 4 5 2 2 Demolisher 3 | . . . . 2 . . . . 1 Hunter 4 | . . . . . 1 2 1 . . Programmer 6 | . . . . . . 2 3 1 . Assembled 12 | . . . . 12 . . . . . Best Kill Streak 17 | . 6 3 8 17 4 5 9 4 3 Combat Bots Only 14 | . 6 3 4 14 3 5 8 2 3 Max Kills in Single Turn 3 | . 1 1 2 3 1 1 3 2 1 Gunslinging 1 | . . . 1 . . . . . . Exploded 2 | . 1 1 . 2 1 . 1 . . Melee . | . . . . . . . . . . Uniques/NPCs Destroyed . | . . . . . . . . . . Combat | -11 -10 -10 -9 -9 -8 -8 -7 -6 -6 -------- Run | Scr Mat Min Mat Min Mat Gar Fac Fac Ext Damage Taken 12603 | . 116 361 779 1185 324 797 4847 1559 2635 Core 1926 | . 11 60 60 169 30 80 658 236 622 Absorbed by Shields . | . . . . . . . . . . Reduced by Siege Mode 347 | . . . . . . . 347 . . Regen/Repaired (Parts) 35 | . . . . . . . 35 . . Core Remaining (%) 59 | 100 . 71 . 42 . 80 6 . . Volleys Fired 572 | . 22 24 72 25 24 231 82 42 50 Largest 3 | . 2 2 3 3 3 3 3 3 3 Hottest 243 | . 80 79 149 76 121 135 117 200 243 Shots Fired 1113 | . 44 40 194 75 54 307 201 77 121 Gun 695 | . 44 38 194 69 49 75 102 10 114 Cannon 402 | . . . . . 3 232 93 67 7 Launcher 16 | . . 2 . 6 2 . 6 . . Special . | . . . . . . . . . . Kinetic 774 | . 1 18 158 69 49 203 195 74 7 Thermal 274 | . . 14 36 . 3 104 . 3 114 Explosive 16 | . . 2 . 6 2 . 6 . . Electromagnetic 49 | . 43 6 . . . . . . . Robot Hit Streak 33 | . 6 17 22 15 32 21 28 33 28 Robot Miss Streak 5 | . 1 2 2 1 1 1 2 5 1 Penetration Max 2 | . . . . . . 1 2 . . Secondary Targets 16 | . . 1 8 3 1 1 . . 2 Max Gunslinging Chain 1 | . . 1 1 1 1 1 . . 1 Shots Hit Robots 736 | . 27 30 137 60 45 130 147 57 103 Core Hits 436 | . 17 15 54 43 19 48 124 52 64 Critical Kills 18 | . . . 1 1 . 2 14 . . Critical Parts Destroyed 26 | . . . . . . . 26 . . Critical Strikes 63 | . . 3 3 1 . 5 42 . 9 Burn 13 | . . 3 2 . . . . . 8 Meltdown 1 | . . . . . . 1 . . . Destroy 43 | . . . 1 1 . 1 40 . . Blast 6 | . . . . . . 3 2 . 1 Melee Attacks 1 | . . . . . . . . 1 . Thermal 1 | . . . . . . . . 1 . Impact . | . . . . . . . . . . Slashing . | . . . . . . . . . . Piercing . | . . . . . . . . . . Sneak Attacks 1 | . . . . . . . . 1 . Combat Hostiles . | . . . . . . . . . . Follow-up Attacks . | . . . . . . . . . . Damage Inflicted 19309 | . 414 531 2217 1527 729 3417 6302 1672 2500 Guns 9927 | . 361 401 2179 885 596 782 2233 173 2317 Cannons 6414 | . . . . . 50 2635 2264 1301 164 Explosions 2797 | . 46 124 . 642 83 . 1801 101 . Melee . | . . . . . . . . . . Ramming 171 | . 7 6 38 . . . 4 97 19 Kinetic 11332 | . 14 166 1684 885 596 1911 4497 1415 164 Thermal 5055 | . 46 164 495 . 50 1506 317 160 2317 Explosive 2333 | . . 124 . 642 83 . 1484 . . Electromagnetic 418 | . 347 71 . . . . . . . Impact . | . . . . . . . . . . Slashing . | . . . . . . . . . . Piercing . | . . . . . . . . . . Highest Corruption 5 | . . . . . . 1 5 2 2 Average Corruption 1 | . . . . . . 1 2 1 2 Corruption Purged . | . . . . . . . . . . Corruption Blocked . | . . . . . . . . . . Effects 38 | . . . . . . 10 10 4 14 Message Errors 7 | . . . . . . 1 2 1 3 Matter Fused 7 | . . . . . . 2 2 1 2 Heat Flow Errors 10 | . . . . . . 4 3 1 2 Energy Discharges 5 | . . . . . . 2 2 . 1 Parts Rejected 1 | . . . . . . . . . 1 Data Loss (minor) 3 | . . . . . . . . 1 2 Data Loss (major) 2 | . . . . . . . 1 . 1 Misfires 2 | . . . . . . 1 . . 1 Weapon Failures 1 | . . . . . . . . . 1 Overload Shots . | . . . . . . . . . . Overflow Damage 462 | . . . . 66 . 185 176 35 . Projectiles 288 | . . . . . . 185 94 9 . Explosions 148 | . . . . 66 . . 82 . . Melee 26 | . . . . . . . . 26 . Knockbacks 72 | . . 1 . . . 10 29 28 4 Impact 3 | . . 1 . . . . . 2 . Kinetic 57 | . . . . . . 8 25 22 2 Secondary 12 | . . . . . . 2 4 4 2 Self-Inflicted Damage 377 | . . . . 62 . . 258 48 9 Shots 11 | . . . . 3 . . 8 . . Rammed 13 | . . . 5 . . . 2 4 2 Targets Rammed 17 | . 2 1 6 . . . 2 4 2 Kicked 3 | . 2 1 . . . . . . . Crushed 1 | . . . 1 . . . . . . Highest Temperature 330 | . 72 259 248 145 75 200 330 235 294 Average Temperature 83 | . 28 94 106 39 23 60 118 69 84 Received Heat Transfer 4196 | . 12 198 471 80 126 396 2067 348 498 Effects 7 | . . . 2 . . . 3 1 1 Energy Bleed 3 | . . . . . . . 2 1 . Interference 3 | . . . 2 . . . . . 1 Short Circuit 1 | . . . . . . . 1 . . Siege Activations 4 | . . . . . . . 4 . . Total Turns 89 | . . . . . . . 89 . . Longest Duration 39 | . . . . . . . 39 . . Robots Corrupted . | . . . . . . . . . . Combat Hostiles . | . . . . . . . . . . Parts Fried . | . . . . . . . . . . Impact Corruptions 1 | . . . . . . . . 1 . Robots Melted 2 | . . . . . . 1 . . 1 Combat Hostiles 2 | . . . . . . 1 . . 1 Parts Melted 16 | . . 2 . . . 3 1 1 9 Heat Transferred 9313 | . 50 629 1221 . 74 2220 200 200 4719 Parts Sabotaged 3 | . . . . . . . . 3 . Parts Stolen . | . . . . . . . . . . Parts Stripped . | . . . . . . . . . . Power Chain Reactions 1 | . 1 . . . . . . . . Missiles Intercepted . | . . . . . . . . . . Alert | -11 -10 -10 -9 -9 -8 -8 -7 -6 -6 ------- Run | Scr Mat Min Mat Min Mat Gar Fac Fac Ext Peak Influence 3722 | . 315 149 483 133 127 3722 2145 1681 873 Initial 1693 | . . 37 19 48 22 72 1693 1100 650 Average 1078 | . 125 49 226 86 48 1788 1698 1289 763 Maximum Alert Level 5 | . 1 . 2 . . 5 5 5 3 Low Security (%) 30 | . 68 100 41 100 100 7 . . . Level 1 8 | . 31 . 48 . . 2 . . . Level 2 7 | . . . 9 . . 9 . . 30 Level 3 11 | . . . . . . 12 . 2 69 Level 4 13 | . . . . . . 13 25 84 . Level 5 27 | . . . . . . 53 50 12 . High Security 2 | . . . . . . . 23 . . Max Security . | . . . . . . . . . . Squads Dispatched 36 | . 2 . 4 . 3 . 11 10 6 Investigation 8 | . 2 . 3 . 2 . . . 1 Extermination 3 | . . . . . . . 1 2 . Reinforcement 3 | . . . 1 . . . . 2 . Assault 19 | . . . . . . . 10 4 5 Garrison 3 | . . . . . 1 . . 2 . Intercept . | . . . . . . . . . . Searches Triggered . | . . . . . . . . . . Construction Impeded 1 | . . . . . . . . 1 . Haulers Reinforced 1 | . . . . . . . . 1 . Active Scanning Responses . | . . . . . . . . . . Cargo Convoy Interrupts . | . . . . . . . . . . Stealth | -11 -10 -10 -9 -9 -8 -8 -7 -6 -6 --------- Run | Scr Mat Min Mat Min Mat Gar Fac Fac Ext Distress Signals 7 | . . . 3 . 2 . . . 2 Communications Jammed 30 | . . . . . . . 3 27 . Distress Signals 30 | . . . . . . . 3 27 . Times Spotted 316 | . 17 8 39 26 8 30 86 47 55 Peak Tracking Total 32 | . 4 3 5 16 4 6 32 15 12 Tactical Retreats 23 | . 2 . 1 2 . . 4 9 5 Traps | -11 -10 -10 -9 -9 -8 -8 -7 -6 -6 ------- Run | Scr Mat Min Mat Min Mat Gar Fac Fac Ext Traps Triggered 13 | . 3 . 1 . 2 . 1 4 2 Indirectly . | . . . . . . . . . . Trap Hack Attempts . | . . . . . . . . . . Triggered . | . . . . . . . . . . Disarmed . | . . . . . . . . . . Reprogrammed 6 | . . . 6 . . . . . . Reused 3 | . . . 3 . . . . . . Traps Extracted . | . . . . . . . . . . Installed . | . . . . . . . . . . Triggered 3 | . . . 3 . . . . . . Machines | -11 -10 -10 -9 -9 -8 -8 -7 -6 -6 ---------- Run | Scr Mat Min Mat Min Mat Gar Fac Fac Ext Machines Disabled 22 | . . 1 1 . . 10 7 2 1 Max in Single Turn 4 | . . 1 1 . . 1 4 2 1 Garrison Access 1 | . . . . . . . . 1 . Garrison Relay 2 | . . . . . . 2 . . . Machines Sabotaged . | . . . . . . . . . . Garrisons Compromised . | . . . . . . . . . . Overloaded Fab Kills . | . . . . . . . . . . Hacking | -11 -10 -10 -9 -9 -8 -8 -7 -6 -6 --------- Run | Scr Mat Min Mat Min Mat Gar Fac Fac Ext Machines Accessed 25 | . 3 . 8 . 5 2 4 3 . Terminals 16 | . 3 . 7 . 2 2 2 . . Fabricators . | . . . . . . . . . . Repair Stations 1 | . . . . . . . 1 . . Recycling Units 3 | . . . . . 1 . . 2 . Scanalyzers 4 | . . . 1 . 1 . 1 1 . Garrison Access 1 | . . . . . 1 . . . . Total Hacks 95 | . 12 . 41 . 21 4 10 7 . Successful 65 | . 5 . 32 . 18 . 6 4 . Failed 28 | . 6 . 8 . 3 4 4 3 . Catastrophic 3 | . 1 . 2 . . . . . . Database Lockouts 2 | . 1 . 1 . . . . . . Manual 29 | . 11 . 14 . . 2 2 . . Terminals 51 | . 12 . 27 . 4 4 4 . . Fabricators . | . . . . . . . . . . Repair Stations 2 | . . . . . . . 2 . . Recycling Units 7 | . . . . . 2 . . 5 . Scanalyzers 34 | . . . 14 . 14 . 4 2 . Garrison Access 1 | . . . . . 1 . . . . Terminal Hacks 23 | . 4 . 16 . 1 . 2 . . Part Schematic 4 | . 2 . 2 . . . . . . Prototype ID Bank 3 | . . . 2 . 1 . . . . Branch Access Points 3 | . 1 . 1 . . . 1 . . Terminal Index 2 | . 1 . 1 . . . . . . Repair Station Index 1 | . . . 1 . . . . . . Recycling Unit Index 1 | . . . 1 . . . . . . Scanalyzer Index 1 | . . . 1 . . . . . . Alert Level 1 | . . . 1 . . . . . . Unreport Threat 3 | . . . 2 . . . 1 . . Locate Traps 2 | . . . 2 . . . . . . Reprogram Traps 1 | . . . 1 . . . . . . Registered Prototypes 1 | . . . 1 . . . . . . Fabricator Hacks . | . . . . . . . . . . Repair Station Hacks 2 | . . . . . . . 2 . . Scan Component 1 | . . . . . . . 1 . . Repair 1 | . . . . . . . 1 . . Recycling Unit Hacks 6 | . . . . . 2 . . 4 . Report Inventory 2 | . . . . . 1 . . 1 . Retrieve Matter 1 | . . . . . . . . 1 . Retrieve Components 3 | . . . . . 1 . . 2 . Scanalyzer 30 | . . . 14 . 14 . 2 . . Insert Component 14 | . . . 6 . 7 . 1 . . Analyze 16 | . . . 8 . 7 . 1 . . Garrison Access Hacks 1 | . . . . . 1 . . . . Unlock Access 1 | . . . . . 1 . . . . Unauthorized Hacks 3 | . 1 . 2 . . . . . . Terminals 3 | . 1 . 2 . . . . . . Botnet 3 | . 1 . 2 . . . . . . Fabricators . | . . . . . . . . . . Repair Stations . | . . . . . . . . . . Recycling Units . | . . . . . . . . . . Scanalyzers . | . . . . . . . . . . Garrison Access . | . . . . . . . . . . Data Cores Recovered . | . . . . . . . . . . Used . | . . . . . . . . . . Hacking Detections 21 | . 3 . 8 . 3 2 3 2 . Full Trace Events 6 | . . . 3 . 1 2 . . . Feedback Events . | . . . . . . . . . . Feedback Blocked . | . . . . . . . . . . Robot Schematics Acquired . | . . . . . . . . . . Robots Built . | . . . . . . . . . . Authchips . | . . . . . . . . . . Time . | . . . . . . . . . . Total Robot Build Rating . | . . . . . . . . . . Part Schematics Acquired 18 | . 2 . 8 . 7 . 1 . . Parts Built . | . . . . . . . . . . Authchips . | . . . . . . . . . . Time . | . . . . . . . . . . Total Part Build Rating . | . . . . . . . . . . Parts Repaired 1 | . . . . . . . 1 . . Time 50 | . . . . . . . 50 . . Parts Recycled . | . . . . . . . . . . Recycled Matter . | . . . . . . . . . . Retrieved Matter . | . . . . . . . . . . Retrieved Components 8 | . . . . . 3 . . 5 . Parts Scanalyzed 14 | . . . 6 . 7 . 1 . . Part Schematics Acquired 14 | . . . 6 . 7 . 1 . . Parts Damaged . | . . . . . . . . . . Bothacking | -11 -10 -10 -9 -9 -8 -8 -7 -6 -6 ------------ Run | Scr Mat Min Mat Min Mat Gar Fac Fac Ext Used RIF Installer . | . . . . . . . . . . Robots Hacked . | . . . . . . . . . . Non-combat . | . . . . . . . . . . Combat . | . . . . . . . . . . Robot Hacks Applied . | . . . . . . . . . . Relay Couplers Released 14 | . . . . . . 9 4 1 . Machine Destruction 10 | . . . . . . 9 . 1 . Programmers 4 | . . . . . . . 4 . . Fabnet Peak Effective % . | . . . . . . . . . . Robots Rewired 22 | . . . . . . 3 . . 19 Allies Hacked . | . . . . . . . . . . Hacks Repelled . | . . . . . . . . . . Allies | -11 -10 -10 -9 -9 -8 -8 -7 -6 -6 -------- Run | Scr Mat Min Mat Min Mat Gar Fac Fac Ext Total Allies 24 | . . . . . . 5 . . 19 Largest Group 13 | . . . . . . 4 2 . 13 Highest-Rated Group 395 | . . . . . . 84 30 . 395 Highest-Rated Ally 39 | . . . . . . 39 15 . 39 Total Orders . | . . . . . . . . . . Ally Attacks 173 | . . . . . . 25 1 . 147 Total Damage 3256 | . . . . . . 540 . . 2716 Kills 30 | . . . . . . 8 . . 22 Allies Corrupted 2 | . . . . . . . . . 2 Allies Melted . | . . . . . . . . . . Intel | -11 -10 -10 -9 -9 -8 -8 -7 -6 -6 ------- Run | Scr Mat Min Mat Min Mat Gar Fac Fac Ext Robot Analysis Total . | . . . . . . . . . . Derelict Logs Recovered 2 | . . 2 . . . . . . . Drone Launches . | . . . . . . . . . . Drone Recoveries . | . . . . . . . . . . Exploration | -11 -10 -10 -9 -9 -8 -8 -7 -6 -6 ------------- Run | Scr Mat Min Mat Min Mat Gar Fac Fac Ext Turns Passed 13714 | . 815 1169 1423 752 635 5491 1423 831 1175 Spaces Moved 7981 | 1 389 591 703 436 283 2901 654 1279 744 Core 146 | . . . . . . . 60 3 83 Treads 4987 | . . 140 703 436 226 2901 573 . 8 Legs 1473 | 1 389 451 . . . . 16 . 616 Wheels 57 | . . . . . 57 . . . . Hover 1222 | . . . . . . . . 1185 37 Flight 96 | . . . . . . . 5 91 . Fastest Speed 35 | 120 120 160 145 145 100 152 35 35 38 Average Speed 139 | 120 187 183 148 150 181 164 152 40 108 Slowest Speed 305 | 120 190 240 160 152 305 245 165 92 160 Overloaded Moves . | . . . . . . . . . . Propulsion Burnouts . | . . . . . . . . . . Robots Hopped 2 | . . . . . . . 2 . . Cave-ins Triggered . | . . . . . . . . . . Exploration Rate (%) 50 | 1 70 91 67 65 23 98 21 28 43 Regions Visited 9 Branch Regions 3 Pre-discovered Areas 1 | . . . . 1 . . . . . Known Exits Taken 3 | . 1 . 1 . 1 . . . . Unknown Exits Taken 5 | 1 . 1 . 1 . . 1 1 . Scrap Searched 2 | . . 1 . 1 . . . . . Spaces Dug 115 | . . . . . . 102 3 10 . Terrain Destroyed 280 | . 4 12 . 28 24 105 79 28 . Melee . | . . . . . . . . . . Projectile 163 | . . . . . 1 105 37 20 . AOE 117 | . 4 12 . 28 23 . 42 8 . Terrain Rammed . | . . . . . . . . . . Walls Destroyed . | . . . . . . . . . . Machines Disabled . | . . . . . . . . . . Actions | -11 -10 -10 -9 -9 -8 -8 -7 -6 -6 --------- Run | Scr Mat Min Mat Min Mat Gar Fac Fac Ext Total 9472 | . 426 636 938 473 355 3256 884 1500 1004 Wait 370 | . 2 1 111 . 5 36 87 106 22 Move 7967 | . 388 590 702 435 283 2898 649 1278 744 Hop 2 | . . . . . . . 2 . . Pick Up 88 | . 6 7 16 5 9 19 14 9 3 Fast Attach 89 | . 3 2 2 . 12 13 7 29 21 Attach 40 | . . 4 3 6 2 5 10 7 3 Detach 5 | . . . . . 1 3 . 1 . Swap 76 | . 2 2 8 2 4 12 23 9 14 Drop 111 | . 1 5 18 . 15 30 8 14 20 Fire 572 | . 22 24 72 25 24 231 82 42 50 Melee 1 | . . . . . . . . 1 . Ram 6 | . . . . . . . . 4 2 Kick 3 | . 2 1 . . . . . . . Crush 8 | . . . 6 . . . 2 . . Escape Stasis . | . . . . . . . . . . Rewire 134 | . . . . . . 9 . . 125 Trap . | . . . . . . . . . . Miscellaneous . | . . . . . . . . . . Route ------- -11/Scrapyard -10/Materials (discovered 4 exits: *Mat x2 / *Min x2) -10/Mines (discovered 2 exits: *Mat x2) -9/Materials (discovered 3 exits: *Mat x2 / *Min) -9/Mines (discovered 3 exits: *Mat / [*Exi] / [*Zio]) -8/Materials (discovered 2 exits: [*Sto] / Gar) -8/Garrison (discovered 3 exits: *Fac x3) -7/Factory (discovered 3 exits: *Fac / Low x2) -6/Factory (discovered 3 exits: *Fac x2 / [*Ext]) -6/Extension History --------- Turn | Location | Event 1 | -11/Scrapyard | Discovered new exit (range 0) 1 | -11/Scrapyard | Entered Materials 257 | -10/Materials | Identified exit to Mines 276 | -10/Materials | Discovered new exit (range 18) 317 | -10/Materials | Build established: Mutant 575 | -10/Materials | Discovered new exit (range 11) 729 | -10/Materials | Central database locked down 816 | -10/Materials | Entered Mines 1087 | -10/Mines | Discovered new exit (range 6) 1348 | -10/Mines | Learned Materials garrison access intel 1679 | -10/Mines | Discovered new exit (range 10) 1723 | -10/Mines | Learned Materials emergency access door positions 1985 | -10/Mines | Entered Materials 1985 | -9/Materials | Evolved 2 slots: Propulsion x1, Weapon x1 2232 | -9/Materials | Identified exit to Mines 2354 | -9/Materials | Discovered new exit (range 10) 2763 | -9/Materials | Build established: Gunner 3097 | -9/Materials | Discovered new exit (range 16) 3143 | -9/Materials | Central database locked down 3408 | -9/Materials | Entered Mines 3409 | -9/Mines | Learned location of Storage (-8) 3504 | -9/Mines | Assembled infested the area 3569 | -9/Mines | Core integrity fell below 50% 3600 | -9/Mines | Lost 7 parts (3n2u2w) 3603 | -9/Mines | Destroyed 14 combat bots 3651 | -9/Mines | A Derelict revealed a hidden shortcut to a safe place 3900 | -9/Mines | Build established: Tank 4052 | -9/Mines | Discovered new exit (range 15) 4145 | -9/Mines | Deemed a non-threat by the Exiles lab entrance 4147 | -9/Mines | Discovered new exit (range 5) 4160 | -9/Mines | Entered Materials 4160 | -8/Materials | Evolved 2 slots: Utility x2 4161 | -8/Materials | Loaded intel: 1 garrison access location 4547 | -8/Materials | Discovered new exit (range 15) 4553 | -8/Materials | Garrison activated, responded to threat 4795 | -8/Materials | Identified exit to Garrison 4795 | -8/Materials | Entered Garrison 4822 | -8/Garrison | Triggered checkpoint 5187 | -8/Garrison | Build established: Mutant 5216 | -8/Garrison | Triggered checkpoint 5351 | -8/Garrison | Discovered new exit (range 12) 5374 | -8/Garrison | Triggered checkpoint 5745 | -8/Garrison | Discovered new exit (range 10) 6064 | -8/Garrison | Found Prototype Device 6270 | -8/Garrison | Discovered new exit (range 14) 6276 | -8/Garrison | Rescued a captive Derelict 6277 | -8/Garrison | Rescued a captive Derelict 7259 | -8/Garrison | Garrison Relay disabled 9607 | -8/Garrison | Garrison Relay disabled 9940 | -8/Garrison | Attempted to access garrison exit controls, blocked by remote lockdown 10078 | -8/Garrison | Attempted to access garrison exit controls, blocked by remote lockdown 10286 | -8/Garrison | Entered Factory 10286 | -7/Factory | Accompanied by 2 allies 10286 | -7/Factory | Evolved 2 slots: Propulsion x1, Utility x1 10512 | -7/Factory | Repaired Cmb. Airjet 10611 | -7/Factory | Build established: Tank 10686 | -7/Factory | First assault squad dispatched 11239 | -7/Factory | Identified exit to Lower Caves 11371 | -7/Factory | High security lockdown imminent 11451 | -7/Factory | High security lockdown engaged 11541 | -7/Factory | Build established: Hacker-Skirmisher 11602 | -7/Factory | Destroyed 7 combat bots 11645 | -7/Factory | Identified Active Sensor Suite 11648 | -7/Factory | Core integrity fell below 50% 11662 | -7/Factory | Destroyed 8 combat bots 11681 | -7/Factory | Lost 16 parts (1p2n8u5w) 11697 | -7/Factory | Core integrity fell below 20% 11703 | -7/Factory | Discovered new exit (range 9) 11709 | -7/Factory | Entered another Factory area 11709 | -6/Factory | Evolved 2 slots: Propulsion x2 11739 | -6/Factory | Lost 4 parts (4n) 12059 | -6/Factory | First assault squad dispatched 12283 | -6/Factory | Discovered new exit (range 15) 12308 | -6/Factory | Discovered new exit (range 15) 12317 | -6/Factory | Identified exit to Factory 12478 | -6/Factory | Discovered exit to Factory (range 14) 12540 | -6/Factory | Entered Extension 12596 | -6/Extension | Lost 10 parts (5n3u2w) 12890 | -6/Extension | First assault squad dispatched 13027 | -6/Extension | P-60 Hacker assimilated allied 4Z-HU2(l) 13353 | -6/Extension | Build established: Scavenger-Tank 13379 | -6/Extension | Disrupted transfer network 13580 | -6/Extension | Spotted B-75 Beast 13589 | -6/Extension | Spotted B-75 Beast 13658 | -6/Extension | Core integrity fell below 50% 13674 | -6/Extension | Core integrity fell below 20% 13699 | -6/Extension | Lost 15 parts (1p6n5u3w) 13715 | -6/Extension | Destroyed by S-27 Virus with Autogun Last Messages --------------- 13660_ Hvy. Beamcaster destroyed. 13660_ Penetrated by Slug. 13663_ Carbon-fiber Leg destroyed. 13663_ Penetrated by Slug. 13663_ Flexi-carbon Leg destroyed. 13665_ Penetrated by Slug. 13666_ Imp. Cooling System destroyed. 13666_ Dropped Weapon Mount. 13667_ Adv. Heat Sink destroyed. 13668_ Thermal Shield destroyed. 13669_ Penetrated by Slug. 13675_ Slug penetrates H-66 Slayer. 13676_ Penetrated by Slug. 13681_ System corrupted: Component data lost. 13694_ Slammed into U-05 Engineer. 13699_ Destabilizing: System interference. 13699_ Structural Scanner temporarily disabled. 13703_ Acquired Carbon-fiber Leg. 13705_ Dropped Carbon-fiber Leg. 13706_ Acquired Imp. Treads. Map ----- +----------------------------------------------------+ | | | | | | | | | | | | | | | | | | | | | | | | | | | | | ???????????????????????????????????????? | | ???????##########????????????????####### | | ???????##########????????????????# | | ???????## ##????????????????# | | ???????## ################### | | ????##### [=] ## = + %* | | ????##### = ## = ########### = | | ????## + !!/%%## / #?????????# | | ????## #*[[%*%## ==% #?????????# | | ????## ####+#### #?????????####### | | ????## =* * =+ #???????????????? | | ????## =/ @########???????????????? | | ????## s% ### ##???????????????? | | ????## s ! ##???????????????? | | ????## #####;##+### ##???????????????? | | ????## ### ###+#########?????????? | | ????## ### ### #?????????? | | ????## ### ### #?????????? | | ????## ### = ### #?????????? | | ????## ### ### #?????????? | | ????## #######################?????????? | | ????## ############????????????????????? | | ????## ##??????????????????????????????? | | ????## ##??????????????????????????????? | | ????## ##??????????????????????????????? | | ????## ##??????????????????????????????? | | ????## ##??????????????????????????????? | | ????## ##??????????????????????????????? | | ????## ##??????????????????????????????? | | ????## ##??????????????????????????????? | | ????## ##??????????????????????????????? | | ????## ##??????????????????????????????? | | ????## ##??????????????????????????????? | | ###### ######??????????????????????????? | | ###### ######??????????????????????????? | | ## "" "" ############## #### ####### | +----------------------------------------------------+ Best States ------------- Heat Dissipation 83 Energy Generation 25 Energy Capacity 350 Matter Stores 300 Matter Capacity 300 Sight Range 22 Robot Scan Range 20 Terrain Scan Density 10 Jamming Range 16 Additional Mass Support 12 Armor Coverage 1050 Resistance: KI 40 Resistance: TH 40 Resistance: EX 20 Resistance: EM 45 Resistance: I 20 Resistance: S 20 Resistance: P 20 Evasion (%) 67 Targeting Accuracy 20 Core Analysis 6 Recoil Reduction 4 Kinecelleration 40 Offensive Hacking 20 Item Schematics ----------------- Aluminum Leg | -10/Materials | Hacked Ion Engine | -10/Materials | Hacked Hcp. Storage Unit | -9/Materials | Hacked Imp. Signal Interpreter | -9/Materials | Scanalyzed Grenade Launcher | -9/Materials | Scanalyzed Med. Armor Plating | -9/Materials | Scanalyzed Imp. Assault Rifle | -9/Materials | Scanalyzed Adv. Treads | -9/Materials | Scanalyzed Lgt. Armor Plating | -9/Materials | Scanalyzed Huge Storage Unit | -9/Materials | Hacked Cmb. Airjet | -8/Materials | Scanalyzed Imp. Sensor Array | -8/Materials | Scanalyzed Mni. Grenade Launcher | -8/Materials | Scanalyzed Great Axe | -8/Materials | Scanalyzed Cooling System | -8/Materials | Scanalyzed Hcp. Matter Pod | -8/Materials | Scanalyzed Structural Scanner | -8/Materials | Scanalyzed KE Penetrator | -7/Factory | Scanalyzed Robot Schematics ------------------ None Fabricated ------------ Nothing Alien Tech Used ----------------- None Achievements -------------- None Challenges ------------ None Game ------ Seed StasisRocketStorage Manual? 0 Play Time 02:12:33 Cumulative 196.7 hours Start 2022.07.02 @ 13:12:08 End 2022.07.02 @ 15:44:21 Sessions 1 Manual Loads 0 Difficulty Adventurer Special Mode None Game No. 79 Rogue 63 Adventurer 13 Explorer 3 Win Type - Total 9 Types 4/0/1/2/0/0/1/0/1 Lore% 58 Gallery% 76 Achievement% 74 Wizard Run 0 Options --------- ASCII 0 Keyboard 0 Movement Numpad Keybinds 0 Fullscreen 1 Font 24/Smallcaps Map View 76x50 Tactical HUD 1 Map Filters NONE Filters LOW_CONTRAST(13,24,33) Steam 1 RUN: 7bda4fbc-09c6-4f6b-9049-1cc973386cb6